bitfinex/quotes_BTCUSD_20241022
["timestamp","ask_amount","ask_price","bid_price","bid_amount"]
[1729604174937,0.149151,67046.0,67045.0,0.00223704]
[1729604175158,0.081,67046.0,67041.0,0.192]
[1729604175379,0.092,67045.0,67037.0,0.2237587]
[1729604175599,0.298325,67041.0,67037.0,0.2237587]
[1729604175819,0.092,67045.0,67041.0,0.26106282]
[1729604176514,0.092,67045.0,67041.0,0.41002197]
[1729604176703,0.092,67045.0,67041.0,0.41802197]
[1729604177179,0.092,67045.0,67041.0,0.26906282]
[1729604177661,0.149156,67044.0,67041.0,0.26906282]
[1729604177876,0.092,67045.0,67041.0,0.26906282]
[1729604178339,0.149158,67043.0,67041.0,0.26906282]
[1729604178575,0.14916,67042.0,67041.0,0.008]
[1729604178802,0.149189,67029.0,67028.0,0.2237587]
[1729604179039,0.231289,67029.0,67028.0,0.2237587]
[1729604179263,0.231289,67029.0,67020.0,0.48482152]
[1729604179264,0.298388,67027.0,67020.0,0.48482152]
[1729604179479,0.629267,67029.0,67028.0,0.2237587]
[1729604179718,0.629267,67029.0,67020.0,0.63378067]
[1729604179719,0.1817,67029.0,67020.0,0.63378067]
[1729604179929,0.1817,67029.0,67028.0,0.26106282]
[1729604180166,0.1817,67029.0,67024.0,0.26106282]
[1729604180381,0.298383,67028.0,67020.0,0.26106282]
[1729604180590,0.149194,67027.0,67020.0,0.41002197]
[1729604181031,0.149196,67026.0,67020.0,0.41002197]
[1729604181253,0.1817,67029.0,67024.0,0.26106282]
[1729604181553,0.149191,67028.0,67024.0,0.26106282]
[1729604181777,0.1817,67029.0,67028.0,0.26106282]
[1729604182005,0.1817,67029.0,67020.0,0.14895915]
[1729604182006,0.1817,67029.0,67024.0,0.26106282]
[1729604182234,0.1817,67029.0,67020.0,0.14895915]
[1729604182235,0.149197,67026.0,67020.0,0.14895915]
[1729604182443,0.149193,67027.0,67020.0,0.14895915]
[1729604182655,0.149198,67025.0,67020.0,0.15295915]
[1729604182877,0.149196,67026.0,67020.0,0.15295915]
[1729604183092,0.149194,67027.0,67020.0,0.14895915]
[1729604183312,0.33089,67029.0,67020.0,0.14895915]
[1729604183524,0.480079,67029.0,67020.0,0.14895915]
[1729604183738,0.480079,67029.0,67019.0,0.0022378]
[1729604183739,0.149198,67025.0,67024.0,0.001]
[1729604184377,0.298387,67027.0,67019.0,0.0022378]
[1729604184593,0.077846,67026.0,67019.0,0.0022378]
[1729604184804,0.1817,67029.0,67019.0,0.0022378]
[1729604184805,0.149207,67021.0,67019.0,0.0022378]
[1729604185008,0.1817,67029.0,67019.0,0.0022378]
[1729604185009,0.298382,67028.0,67020.0,0.2237587]
[1729604185218,0.298387,67027.0,67020.0,0.2237587]
[1729604185463,0.149197,67026.0,67019.0,0.0022378]
[1729604185695,0.149203,67023.0,67019.0,0.0022378]
[1729604185922,0.298387,67027.0,67019.0,0.0022378]
[1729604186152,0.480079,67029.0,67019.0,0.0022378]
[1729604186402,0.1817,67029.0,67020.0,0.2237587]
[1729604186622,0.1817,67029.0,67026.0,0.26106282]
[1729604186843,0.1817,67029.0,67021.0,0.26106282]
[1729604187058,0.1817,67029.0,67022.0,0.14895915]
[1729604188124,0.149191,67028.0,67022.0,0.14895915]
[1729604188346,0.33089,67029.0,67022.0,0.14895915]
[1729604188920,0.33089,67029.0,67019.0,0.0030608]
[1729604188921,0.1817,67029.0,67019.0,0.0030608]
[1729604189162,0.149207,67021.0,67019.0,0.0030608]
[1729604189369,0.149209,67021.0,67019.0,0.0030608]
[1729604189597,0.149209,67020.0,67019.0,0.0030608]
[1729604189811,0.149209,67020.0,67019.0,0.000823]
[1729604190465,0.2536522,67020.0,67019.0,0.000823]
[1729604190632,0.149209,67020.0,67019.0,0.000823]
[1729604190986,0.230609,67020.0,67019.0,0.000823]
[1729604191214,0.427809,67020.0,67019.0,0.000823]
[1729604194015,0.58676815,67020.0,67019.0,0.000823]
[1729604194267,0.60976815,67020.0,67019.0,0.000823]
[1729604194491,0.60976815,67020.0,67004.0,0.00223855]
[1729604194492,0.149242,67005.0,67004.0,0.00223855]
[1729604194731,0.2746,67005.0,67003.0,0.2237587]
[1729604194949,0.14926,66997.0,66982.0,0.3730507]
[1729604195172,0.14926,66997.0,66982.0,0.2237587]
[1729604195402,0.149272,66992.0,66982.0,0.2237587]
[1729604195631,0.298529,66996.0,66983.0,0.26106282]
[1729604195863,0.01,67003.0,66990.0,0.002239]
[1729604195864,0.149275,66991.0,66990.0,0.002239]
[1729604196292,0.149273,66991.0,66990.0,0.002239]
[1729604196506,0.005,67003.0,66990.0,0.002239]
[1729604196798,0.005,67003.0,66993.0,0.26106282]
[1729604196997,0.005,67003.0,66990.0,0.002239]
[1729604197205,0.14927,66993.0,66991.0,0.2237587]
[1729604197428,0.149269,66993.0,66991.0,0.2237587]
[1729604197660,0.149266,66995.0,66991.0,0.2237587]
[1729604197874,0.298503,67001.0,66990.0,0.002239]
[1729604198086,0.03396,67003.0,66990.0,0.002239]
[1729604198087,0.149273,66991.0,66990.0,0.002239]
[1729604198319,0.149291,66983.0,66982.0,0.2237587]
[1729604198556,0.149291,66983.0,66982.0,0.1931874]
[1729604199000,0.149295,66982.0,66975.0,0.48482152]
[1729604199235,0.1493,66979.0,66975.0,0.2237587]
[1729604199476,0.149315,66973.0,66961.0,0.26106282]
[1729604199702,0.149316,66972.0,66968.0,0.14895915]
[1729604199924,0.149316,66972.0,66971.0,0.00223947]
[1729604200147,0.298579,66984.0,66969.0,0.26106282]
[1729604200365,0.2237587,66970.0,66969.0,0.14895915]
[1729604200665,0.154325,66968.0,66967.0,0.000824]
[1729604200855,0.154325,66968.0,66962.0,0.2237587]
[1729604200856,0.149336,66963.0,66962.0,0.19658271]
[1729604201309,0.149349,66957.0,66956.0,0.00308417]
[1729604203565,0.154349,66957.0,66956.0,0.000844]
[1729604204883,0.157349,66957.0,66956.0,0.000844]
[1729604205305,0.3118587,66957.0,66951.0,0.000844]
[1729604205513,0.308687,66960.0,66936.0,0.2237587]
[1729604205514,0.149394,66937.0,66936.0,0.2237587]
[1729604205728,0.149394,66937.0,66936.0,0.19619441]
[1729604205935,0.149394,66937.0,66936.0,0.16914441]
[1729604206146,0.015,66942.0,66930.0,0.000844]
[1729604206568,0.149405,66933.0,66930.0,0.000844]
[1729604206779,0.149407,66931.0,66930.0,0.000844]
[1729604207033,0.298775,66940.0,66930.0,0.000844]
[1729604207034,0.149405,66932.0,66930.0,0.000844]
[1729604207495,0.149407,66931.0,66930.0,0.000844]
[1729604208412,0.154407,66931.0,66930.0,0.000844]
[1729604208627,0.31336615,66931.0,66930.0,0.000844]
[1729604208839,0.57442897,66931.0,66930.0,0.000844]
[1729604209057,0.57442897,66931.0,66930.0,0.003844]
[1729604209258,1.09251257,66931.0,66930.0,0.003844]
[1729604209684,1.09251257,66931.0,66930.0,0.000844]
[1729604210027,0.94542897,66931.0,66930.0,0.000844]
[1729604210238,0.95242897,66931.0,66930.0,0.001844]
[1729604210606,0.69136615,66931.0,66930.0,0.001844]
[1729604210811,0.442407,66931.0,66930.0,0.001844]
[1729604211022,0.237907,66931.0,66930.0,0.001844]
[1729604211230,0.161407,66931.0,66930.0,0.001844]
[1729604211543,0.156407,66931.0,66930.0,0.001844]
[1729604212111,0.149407,66931.0,66930.0,0.000844]
[1729604212277,0.448209,66933.0,66930.0,0.000844]
[1729604212480,0.007,66931.0,66930.0,0.41231582]
[1729604212887,0.2237587,66948.0,66940.0,0.149386]
[1729604213114,0.2237587,66948.0,66947.0,0.26106282]
[1729604213356,0.29872,66953.0,66947.0,0.26106282]
[1729604213538,0.298712,66954.0,66947.0,0.26106282]
[1729604213758,0.298708,66955.0,66947.0,0.26106282]
[1729604214001,0.2237587,66976.0,66947.0,0.26106282]
[1729604214002,0.149358,66953.0,66948.0,0.26106282]
[1729604214317,0.14936,66952.0,66947.0,0.14895915]
[1729604214534,0.149366,66950.0,66947.0,0.14895915]
[1729604214756,0.149361,66952.0,66947.0,0.14895915]
[1729604214980,0.005,66942.0,66930.0,0.000844]
[1729604215208,0.149407,66931.0,66930.0,0.000844]
[1729604216626,0.149407,66932.0,66930.0,0.000844]
[1729604216874,0.149407,66931.0,66930.0,0.000844]
[1729604217328,0.149407,66931.0,66930.0,0.003844]
[1729604218192,0.298792,66936.0,66930.0,0.003844]
[1729604218433,0.2237587,66945.0,66935.0,0.39931857]
[1729604218652,0.298757,66944.0,66936.0,0.14895915]
[1729604218874,0.149384,66942.0,66936.0,0.14895915]
[1729604220187,0.149386,66941.0,66936.0,0.14895915]
[1729604220524,0.14938,66943.0,66936.0,0.14895915]
[1729604220743,0.149383,66942.0,66936.0,0.14895915]
[1729604221411,0.149375,66946.0,66937.0,0.149394]
[1729604221644,0.2237587,66949.0,66936.0,0.006]
[1729604221874,0.298739,66948.0,66936.0,0.006]
[1729604222103,0.015,66955.0,66940.0,0.2237587]
[1729604222341,0.14937,66948.0,66941.0,0.39931857]
[1729604222578,0.149371,66948.0,66944.0,0.0022405]
[1729604222796,0.298741,66948.0,66944.0,0.0022405]
[1729604223017,0.298733,66950.0,66944.0,0.0022405]
[1729604223254,0.298722,66952.0,66944.0,0.0022405]
[1729604223480,0.149353,66956.0,66947.0,0.54868957]
[1729604223755,0.149359,66953.0,66947.0,0.39931857]
[1729604223973,0.001648,66957.0,66947.0,0.39931857]
[1729604224185,0.149363,66951.0,66947.0,0.39931857]
[1729604224415,0.29872,66953.0,66947.0,0.39931857]
[1729604224637,0.149359,66953.0,66947.0,0.39931857]
[1729604224859,0.149361,66952.0,66947.0,0.39931857]
[1729604225127,0.149369,66948.0,66945.0,0.14895915]
[1729604225354,0.298703,66956.0,66938.0,0.3237587]
[1729604225579,0.0315351,66956.0,66945.0,0.2237587]
[1729604225794,0.001648,66957.0,66948.0,0.00224037]
[1729604226025,0.448062,66955.0,66948.0,0.00224037]
[1729604226268,0.298712,66954.0,66948.0,0.00224037]
[1729604226480,0.298703,66956.0,66948.0,0.00224037]
[1729604226708,0.001648,66957.0,66949.0,0.14895915]
[1729604226923,0.149353,66956.0,66949.0,0.14895915]
[1729604227840,0.149354,66955.0,66949.0,0.14895915]
[1729604228068,0.149354,66955.0,66949.0,0.15295915]
[1729604228308,0.001648,66957.0,66950.0,0.149363]
[1729604228528,0.001648,66957.0,66951.0,0.14895915]
[1729604229027,0.001648,66957.0,66955.0,0.39931857]
[1729604229258,0.001648,66957.0,66956.0,0.40129663]
[1729604229486,0.001648,66957.0,66956.0,0.60911015]
[1729604229707,0.001648,66957.0,66956.0,0.61911015]
[1729604229943,0.001648,66957.0,66956.0,0.62111015]
[1729604230607,0.001648,66957.0,66956.0,0.70301015]
[1729604231262,0.001648,66957.0,66956.0,0.74923971]
[1729604231705,0.2237587,66980.0,66979.0,0.2493]
[1729604231943,0.2237587,66980.0,66979.0,0.79757772]
[1729604232161,0.149278,66989.0,66980.0,0.447893]
[1729604232386,0.149275,66991.0,66981.0,0.14895915]
[1729604232629,0.0844,66999.0,66984.0,0.00223902]
[1729604232859,0.447807,66993.0,66984.0,0.00223902]
[1729604233080,0.149281,66988.0,66984.0,0.00223902]
[1729604233305,0.149282,66987.0,66984.0,0.00223902]
[1729604233535,0.005,66998.0,66984.0,0.00223902]
[1729604233759,0.2387587,66993.0,66976.0,0.2237587]
[1729604234024,0.149287,66985.0,66984.0,0.2237587]
[1729604234235,0.29856,66988.0,66976.0,0.2237587]
[1729604234440,0.298569,66986.0,66976.0,0.2237587]
[1729604234648,0.005,66989.0,66979.0,0.00223894]
[1729604234870,0.149298,66980.0,66979.0,0.01323894]
[1729604235538,0.298575,66985.0,66979.0,0.00223894]
[1729604235757,0.005,66996.0,66980.0,0.14895915]
[1729604235968,0.2287587,66993.0,66980.0,0.14895915]
[1729604236182,0.149285,66986.0,66980.0,0.14895915]
[1729604236395,0.298568,66987.0,66980.0,0.14895915]
[1729604236614,0.14929,66984.0,66980.0,0.14895915]
[1729604236816,0.298543,66992.0,66980.0,0.14895915]
[1729604237018,0.149285,66986.0,66980.0,0.14895915]
[1729604237674,0.149291,66983.0,66980.0,0.14895915]
[1729604237856,0.14929,66984.0,66980.0,0.14895915]
[1729604238105,0.298565,66987.0,66980.0,0.14895915]
[1729604238326,0.298552,66990.0,66980.0,0.14895915]
[1729604238541,0.149272,66992.0,66987.0,0.26005154]
[1729604238752,0.298529,66995.0,66987.0,0.26005154]
[1729604239028,0.005,66997.0,66987.0,0.26005154]
[1729604239240,0.149287,66986.0,66982.0,0.26005154]
[1729604239463,0.298563,66988.0,66984.0,0.2237587]
[1729604239688,0.298538,66994.0,66983.0,0.16015231]
[1729604239909,0.149285,66986.0,66985.0,0.01117538]
[1729604240135,0.149287,66985.0,66984.0,0.01118427]
[1729604240351,0.149287,66985.0,66983.0,0.2237587]
[1729604240561,0.149286,66986.0,66984.0,0.01118427]
[1729604240775,0.149285,66986.0,66985.0,0.00223921]
[1729604240989,0.149285,66986.0,66985.0,0.01341459]
[1729604241208,0.298534,66994.0,66985.0,0.01341459]
[1729604241414,0.149284,66986.0,66985.0,0.01341459]
[1729604241854,0.01,66996.0,66985.0,0.00223921]
[1729604241855,0.005,66996.0,66985.0,0.00223921]
[1729604242070,0.149276,66990.0,66985.0,0.01341459]
[1729604242280,0.298546,66992.0,66987.0,0.003]
[1729604242492,0.005,66996.0,66988.0,0.26005154]
[1729604242493,0.149264,66995.0,66988.0,0.26005154]
[1729604242743,0.149278,66989.0,66988.0,0.27120025]
[1729604243344,0.298547,66991.0,66988.0,0.27120025]
[1729604243547,0.149278,66989.0,66988.0,0.27120025]
[1729604244200,0.298538,66993.0,66988.0,0.27120025]
[1729604244427,0.005,66996.0,66988.0,0.27120025]
[1729604244636,0.149278,66989.0,66988.0,0.01114871]
[1729604244863,0.159278,66989.0,66988.0,0.01114871]
[1729604245076,0.159278,66989.0,66985.0,0.005]
[1729604245077,0.149284,66986.0,66985.0,0.005]
[1729604245258,0.154284,66986.0,66985.0,0.005]
[1729604245533,0.154284,66986.0,66985.0,0.01094681]
[1729604245740,0.149304,66977.0,66976.0,0.2237587]
[1729604245952,0.005,66985.0,66976.0,0.2237587]
[1729604246137,0.1493,66979.0,66976.0,0.2237587]
[1729604246367,0.149304,66978.0,66976.0,0.2237587]
[1729604246591,0.298577,66985.0,66974.0,0.26005154]
[1729604246793,0.149297,66981.0,66974.0,0.40901069]
[1729604246981,0.298587,66982.0,66977.0,0.00223921]
[1729604247241,0.149302,66978.0,66977.0,0.00223921]
[1729604247466,0.14929,66984.0,66977.0,0.30050236]
[1729604247693,0.149296,66981.0,66978.0,0.14895915]
[1729604247909,0.149293,66982.0,66978.0,0.14895915]
[1729604248151,0.298569,66986.0,66978.0,0.14895915]
[1729604248355,0.149294,66982.0,66978.0,0.14895915]
[1729604248564,0.149294,66982.0,66979.0,0.01100015]
[1729604248748,0.298574,66985.0,66979.0,0.1599593]
[1729604248963,0.298565,66987.0,66979.0,0.1599593]
[1729604249203,0.149298,66980.0,66979.0,0.01100015]
[1729604249442,0.154298,66980.0,66979.0,0.01100015]
[1729604249653,0.154304,66977.0,66976.0,0.005]
[1729604249874,0.149333,66964.0,66963.0,0.2237587]
[1729604250314,0.149333,66964.0,66963.0,0.2349037]
[1729604250537,0.005,66973.0,66963.0,0.011145]
[1729604250752,0.149327,66967.0,66966.0,0.00223972]
[1729604253529,0.298636,66971.0,66966.0,0.00223972]
[1729604253751,0.005,66978.0,66967.0,0.26005154]
[1729604253966,0.01,66979.0,66967.0,0.27117464]
[1729604253967,0.298602,66979.0,66967.0,0.27117464]
[1729604254212,0.298605,66978.0,66972.0,0.26005154]
[1729604254422,0.298602,66979.0,66972.0,0.26005154]
[1729604254640,0.149311,66974.0,66973.0,0.01106974]
[1729604255055,0.149311,66974.0,66968.0,0.29828315]
[1729604255266,0.298619,66975.0,66968.0,0.14895915]
[1729604255479,0.298591,66982.0,66969.0,0.01110531]
[1729604255632,0.149305,66977.0,66971.0,0.149317]
[1729604255840,0.149307,66976.0,66970.0,0.149319]
[1729604256066,0.298607,66978.0,66972.0,0.01107863]
[1729604256269,0.447874,66983.0,66971.0,0.01108752]
[1729604256421,0.447874,66983.0,66969.0,0.14895915]
[1729604256422,0.149313,66974.0,66973.0,0.01106974]
[1729604256629,0.005,66985.0,66972.0,0.27113017]
[1729604256881,0.005,66986.0,66973.0,0.01106974]
[1729604257083,0.298602,66979.0,66973.0,0.01106974]
[1729604257286,0.298605,66978.0,66973.0,0.01106974]
[1729604257435,0.149306,66977.0,66973.0,0.01106974]
[1729604257633,0.149308,66976.0,66973.0,0.01106974]
[1729604258133,0.149306,66977.0,66973.0,0.01106974]
[1729604258483,0.298605,66978.0,66973.0,0.01106974]
[1729604258895,0.149307,66976.0,66973.0,0.01106974]
[1729604259188,0.447913,66977.0,66973.0,0.01106974]
[1729604259496,0.149308,66976.0,66973.0,0.01106974]
[1729604259706,0.149308,66976.0,66973.0,0.02406974]
[1729604260132,0.149307,66976.0,66973.0,0.02406974]
[1729604260339,0.149307,66976.0,66973.0,0.01106974]
[1729604260546,0.149311,66975.0,66973.0,0.01106974]
[1729604260732,0.149311,66975.0,66973.0,0.01606974]
[1729604261181,0.001648,66980.0,66973.0,0.01606974]
[1729604261362,0.298601,66979.0,66973.0,0.01106974]
[1729604261562,0.149307,66976.0,66973.0,0.01106974]
[1729604261795,0.150946,66980.0,66973.0,0.01106974]
[1729604262039,0.298601,66979.0,66973.0,0.01106974]
[1729604262274,0.001648,66980.0,66979.0,0.50935154]
[1729604262496,0.001648,66980.0,66979.0,0.73971069]
[1729604262715,0.001648,66980.0,66979.0,0.75072912]
[1729604264181,0.001648,66980.0,66979.0,0.16221698]
[1729604264629,0.001648,66980.0,66979.0,0.17121698]
[1729604265238,0.001648,66980.0,66979.0,0.16221698]
[1729604265752,0.001648,66980.0,66979.0,0.16821698]
[1729604267291,0.001648,66980.0,66979.0,0.16221698]
[1729604267496,0.001648,66980.0,66979.0,0.57156852]
[1729604267699,0.001648,66980.0,66979.0,0.57756852]
[1729604268315,0.001648,66980.0,66979.0,0.57156852]
[1729604268728,0.001648,66980.0,66979.0,0.57856852]
[1729604270729,0.001648,66980.0,66979.0,0.57156852]
[1729604271177,0.001648,66980.0,66979.0,0.58156852]
[1729604271794,0.001648,66980.0,66979.0,0.57156852]
[1729604272228,0.001648,66980.0,66979.0,0.70756852]
[1729604272472,0.001648,66980.0,66979.0,0.90026852]
[1729604272696,0.001648,66980.0,66979.0,0.94876838]
[1729604273162,0.001648,66980.0,66979.0,1.02466838]
[1729604273396,0.2237587,67003.0,67002.0,0.149249]
[1729604273619,0.2237587,67003.0,67002.0,0.29820815]
[1729604273837,0.298443,67015.0,67006.0,0.298478]
[1729604274076,0.298443,67015.0,67006.0,0.149239]
[1729604274077,0.149225,67013.0,67006.0,0.149239]
[1729604274313,0.015,67020.0,67012.0,0.26005154]
[1729604274756,0.149222,67014.0,67013.0,0.0106987]
[1729604274982,0.149215,67017.0,67016.0,0.26005154]
[1729604275197,0.149215,67017.0,67016.0,0.27072359]
[1729604275856,0.303409,67022.0,67016.0,0.27072359]
[1729604276070,0.149206,67021.0,67020.0,0.26005154]
[1729604276533,0.150895,67023.0,67020.0,0.26005154]
[1729604276751,0.001692,67023.0,67022.0,0.149204]
[1729604277430,0.001692,67023.0,67022.0,0.30876729]
[1729604279348,0.150894,67023.0,67022.0,0.01060414]
[1729604279820,0.149205,67022.0,67020.0,0.26005154]
[1729604280255,0.149206,67021.0,67020.0,0.26005154]
[1729604280446,0.149206,67021.0,67008.0,0.38397431]
[1729604280447,0.3733539,67021.0,67008.0,0.38397431]
[1729604280587,0.149222,67014.0,67013.0,0.2237587]
[1729604280808,0.0749399,67021.0,67013.0,0.2237587]
[1729604281059,0.14922,67015.0,67014.0,0.01067125]
[1729604281250,0.14922,67015.0,67014.0,0.01290937]
[1729604282654,0.16422,67015.0,67014.0,0.01067125]
[1729604282872,0.149255,66999.0,66995.0,0.26005154]
[1729604283087,0.149255,66999.0,66990.0,0.2237587]
[1729604283307,0.149255,66999.0,66990.0,0.48381024]
[1729604283521,0.149272,66992.0,66990.0,0.48381024]
[1729604283733,0.298537,66994.0,66991.0,0.14895915]
[1729604283958,0.298484,67006.0,66985.0,0.29857]
[1729604283959,0.298544,66992.0,66985.0,0.26005154]
[1729604284194,0.298548,66991.0,66989.0,0.26005154]
[1729604284415,0.149276,66990.0,66989.0,0.26005154]
[1729604285139,0.005,66998.0,66986.0,0.26005154]
[1729604285357,0.149281,66988.0,66986.0,0.26005154]
[1729604285576,0.149282,66987.0,66986.0,0.26005154]
[1729604288156,0.015,66998.0,66980.0,0.5223547]
[1729604288364,0.015,66998.0,66981.0,0.14895915]
[1729604288365,0.149292,66983.0,66981.0,0.14895915]
[1729604288576,0.298577,66985.0,66981.0,0.14895915]
[1729604288788,0.149292,66983.0,66981.0,0.14895915]
[1729604289011,0.14926,66997.0,66981.0,0.14895915]
[1729604289214,0.015,66998.0,66986.0,0.005]
[1729604289215,0.149282,66987.0,66986.0,0.005]
[1729604289839,0.149282,66987.0,66983.0,0.14929]
[1729604290065,0.14929,66984.0,66983.0,0.14895915]
[1729604290281,0.29857,66986.0,66983.0,0.14895915]
[1729604290282,0.149283,66987.0,66983.0,0.29824915]
[1729604290503,0.149289,66984.0,66983.0,0.14895915]
[1729604291344,0.149289,66984.0,66983.0,0.15595915]
[1729604291568,0.298547,66991.0,66983.0,0.15595915]
[1729604291770,0.149284,66987.0,66983.0,0.30525015]
[1729604292631,0.149285,66986.0,66983.0,0.30525015]
[1729604292850,0.298565,66987.0,66983.0,0.15595915]
[1729604293067,0.149284,66986.0,66983.0,0.14895915]
[1729604293286,0.149289,66984.0,66983.0,0.14895915]
[1729604293496,0.149304,66977.0,66974.0,0.38397431]
[1729604293712,0.149307,66976.0,66975.0,0.14895915]
[1729604293927,0.26005154,66982.0,66965.0,0.14933]
[1729604294151,0.005,66985.0,66973.0,0.2237587]
[1729604294356,0.005,66985.0,66966.0,0.14895915]
[1729604294357,0.149315,66973.0,66968.0,0.149324]
[1729604294539,0.005,66985.0,66983.0,0.005]
[1729604294750,0.149289,66984.0,66983.0,0.005]
[1729604295241,0.18552779,66984.0,66983.0,0.005]
[1729604295463,0.44557933,66984.0,66983.0,0.005]
[1729604295681,0.42434054,66984.0,66983.0,0.005]
[1729604296360,0.005,66981.0,66972.0,0.00223967]
[1729604296568,0.149298,66980.0,66979.0,0.2237587]
[1729604296788,0.149318,66971.0,66970.0,0.2237587]
[1729604297223,0.29863,66973.0,66963.0,0.2237587]
[1729604297438,0.149333,66964.0,66963.0,0.37271785]
[1729604297659,0.149333,66964.0,66963.0,0.37495752]
[1729604298105,0.149333,66964.0,66963.0,0.00223967]
[1729604300027,0.149347,66958.0,66957.0,0.000824]
[1729604301472,0.005,66964.0,66957.0,0.000824]
[1729604302048,0.149347,66958.0,66957.0,0.000824]
[1729604303497,0.19618744,66958.0,66957.0,0.000824]
[1729604303805,0.149347,66958.0,66957.0,0.000824]
[1729604304437,0.149347,66958.0,66957.0,0.009824]
[1729604305313,0.164347,66958.0,66957.0,0.000824]
[1729604309148,0.31330615,66958.0,66957.0,0.001824]
[1729604309372,0.4622653,66958.0,66957.0,0.001824]
[1729604309609,0.4622653,66958.0,66938.0,0.2237587]
[1729604309610,0.149389,66939.0,66938.0,0.2237587]
[1729604310508,0.149394,66937.0,66930.0,0.2246027]
[1729604310958,0.149394,66937.0,66930.0,0.000844]
[1729604311174,0.154394,66937.0,66930.0,0.000844]
[1729604312034,0.25948473,66937.0,66930.0,0.000844]
[1729604312249,0.154394,66937.0,66930.0,0.000844]
[1729604313079,0.162394,66937.0,66936.0,0.001824]
[1729604313325,4.89694315,66937.0,66936.0,0.001824]
[1729604313935,4.93743944,66937.0,66936.0,0.001824]
[1729604314138,5.18639859,66937.0,66936.0,0.001824]
[1729604314541,0.005,66925.0,66918.0,0.00224148]
[1729604314768,5.28200459,66937.0,66909.0,0.2237587]
[1729604314769,0.005,66910.0,66909.0,0.2237587]
[1729604314992,0.154454,66910.0,66909.0,0.2237587]
[1729604315456,0.14947,66903.0,66900.0,0.000945]
[1729604315895,0.298936,66904.0,66900.0,0.000945]
[1729604316092,0.298913,66909.0,66901.0,0.2237587]
[1729604316304,0.01,66917.0,66901.0,0.2237587]
[1729604316305,0.005,66916.0,66904.0,0.26229332]
[1729604316488,0.004,66910.0,66909.0,0.26005154]
[1729604316688,0.004,66910.0,66909.0,0.40950754]
[1729604317379,0.004,66910.0,66909.0,0.55846669]
[1729604317594,0.004,66910.0,66909.0,0.40901069]
[1729604317834,0.004,66910.0,66909.0,0.55846669]
[1729604318677,0.004,66910.0,66909.0,0.63636669]
[1729604318879,0.149441,66916.0,66912.0,0.149448]
[1729604319090,0.149441,66916.0,66912.0,0.29840815]
[1729604319300,0.005,66926.0,66912.0,0.14895915]
[1729604319468,0.14944,66917.0,66912.0,0.29840715]
[1729604319868,0.298873,66919.0,66912.0,0.14978415]
[1729604320073,0.149436,66918.0,66913.0,0.40949854]
[1729604320295,0.149436,66918.0,66915.0,0.17158219]
[1729604320296,0.001,66916.0,66915.0,0.17158219]
[1729604320650,0.150442,66916.0,66915.0,0.17158219]
[1729604321202,0.150442,66916.0,66912.0,0.15878415]
[1729604321356,0.149444,66915.0,66912.0,0.15878415]
[1729604321554,0.001,66916.0,66912.0,0.15878415]
[1729604321813,0.149447,66913.0,66912.0,0.15878415]
[1729604322038,0.0309877,66916.0,66912.0,0.15878415]
[1729604322382,0.149445,66915.0,66912.0,0.14978415]
[1729604322558,0.149447,66914.0,66912.0,0.14978415]
[1729604322785,0.149447,66914.0,66912.0,0.15178415]
[1729604323005,0.298884,66916.0,66912.0,0.15178415]
[1729604323217,0.001,66919.0,66912.0,0.15178415]
[1729604323437,0.298864,66920.0,66915.0,0.17158219]
[1729604323653,0.298851,66923.0,66915.0,0.17158219]
[1729604323839,0.29884,66926.0,66919.0,0.17158219]
[1729604324035,0.149432,66920.0,66919.0,0.17158219]
[1729604324879,0.149447,66913.0,66912.0,0.002825]
[1729604325210,0.298884,66916.0,66912.0,0.002825]
[1729604325459,0.298859,66921.0,66912.0,0.002825]
[1729604325657,0.149447,66913.0,66912.0,0.002825]
[1729604325862,0.005,66924.0,66912.0,0.002825]
[1729604326058,0.149447,66913.0,66912.0,0.002825]
[1729604326285,0.298889,66915.0,66912.0,0.000825]
[1729604326509,0.149445,66914.0,66912.0,0.000825]
[1729604327080,0.149447,66913.0,66912.0,0.000825]
[1729604327696,0.149447,66914.0,66912.0,0.000825]
[1729604327933,0.298877,66917.0,66912.0,0.005825]
[1729604328132,0.149447,66913.0,66912.0,0.005825]
[1729604328335,0.149445,66914.0,66912.0,0.005825]
[1729604328490,0.29889,66915.0,66912.0,0.005825]
[1729604328695,0.149447,66913.0,66912.0,0.005825]
[1729604328897,0.149444,66915.0,66912.0,0.005825]
[1729604329107,0.298854,66923.0,66914.0,0.17158219]
[1729604329362,0.298833,66928.0,66922.0,0.17158219]
[1729604329569,0.298833,66928.0,66923.0,0.149424]
[1729604329719,0.149425,66924.0,66922.0,0.17158219]
[1729604329917,0.298824,66929.0,66922.0,0.17158219]
[1729604330173,0.005,66940.0,66926.0,0.17158219]
[1729604330339,0.149405,66932.0,66931.0,0.17158219]
[1729604330950,0.298783,66938.0,66927.0,0.17158219]
[1729604331162,0.298775,66940.0,66935.0,0.17158219]
[1729604331358,0.149396,66936.0,66935.0,0.17158219]
[1729604331931,0.298789,66937.0,66931.0,0.17158219]
[1729604332137,0.298797,66935.0,66931.0,0.17158219]
[1729604332351,0.149401,66934.0,66931.0,0.17158219]
[1729604332557,0.149404,66933.0,66931.0,0.17158219]
[1729604333226,0.149401,66934.0,66931.0,0.32098819]
[1729604333440,0.1996,66959.0,66931.0,0.32098819]
[1729604333441,0.298797,66935.0,66931.0,0.17158219]
[1729604333693,0.149405,66932.0,66931.0,0.17158219]
[1729604333921,0.149401,66934.0,66931.0,0.17158219]
[1729604334389,0.149398,66936.0,66932.0,0.149404]
[1729604334584,0.149399,66935.0,66931.0,0.32098819]
[1729604334790,0.298766,66942.0,66931.0,0.32098819]
[1729604334995,0.149379,66944.0,66940.0,0.32096919]
[1729604335215,0.149379,66944.0,66939.0,0.17158219]
[1729604335216,0.005,66956.0,66943.0,0.17158219]
[1729604335419,0.149358,66953.0,66952.0,0.17158219]
[1729604335626,0.149358,66953.0,66943.0,0.14895915]
[1729604335627,0.149367,66949.0,66948.0,0.17158219]